bitfinex/quotes_SOLUSD_20250823
["timestamp","ask_amount","ask_price","bid_price","bid_amount"]
[1755973300800,0.78,204.29,204.28,13.59559401]
[1755973300982,0.78,204.29,204.28,51.29559401]
[1755973301769,0.78,204.29,204.28,13.59559401]
[1755973301977,5.67505724,204.29,204.28,37.7]
[1755973303579,0.78,204.29,204.28,37.7]
[1755973304497,0.78,204.29,204.24,13.59559401]
[1755973304676,0.78,204.29,204.26,13.59559401]
[1755973305003,0.78,204.29,204.27,37.72]
[1755973308585,0.28432314,204.25,204.21,0.03]
[1755973309095,0.72,204.24,204.21,0.03]
[1755973309427,26.0,204.22,204.21,0.03]
[1755973309582,30.89668005,204.22,204.21,0.03]
[1755973309780,31.90100319,204.22,204.21,0.03]
[1755973310105,33.86270119,204.22,204.21,0.03]
[1755973320309,0.28432314,204.21,204.19,1.35821167]
[1755973320611,0.69,204.2,204.19,1.35821167]
[1755973321309,2.93640514,204.2,204.19,1.35821167]
[1755973321510,7.14356478,204.2,204.19,1.35821167]
[1755973321818,7.83356478,204.2,204.19,1.35821167]
[1755973326394,26.28432314,204.17,204.16,0.03]
[1755973326789,26.97432314,204.17,204.16,0.03]
[1755973327007,26.28432314,204.16,204.14,0.03]
[1755973327197,80.78432314,204.15,204.14,0.03]
[1755973327397,124.13268218,204.15,204.14,0.03]
[1755973327720,127.41798318,204.15,204.14,0.03]
[1755973331803,46.91798318,204.15,204.14,0.03]
[1755973332102,0.28432314,204.11,204.09,0.03]
[1755973332305,80.78432314,204.11,204.09,0.03]
[1755973332630,26.0,204.14,204.1,8.25801673]
[1755973332925,26.0,204.14,204.11,0.7]
[1755973335924,26.0,204.14,204.11,8.25801673]
[1755973336225,26.0,204.15,204.12,8.25801673]
[1755973336424,26.0,204.14,204.12,7.55801673]
[1755973336721,42.6376618,204.18,204.13,0.7]
[1755973336927,26.0,204.15,204.13,8.25801673]
[1755973337113,26.0,204.15,204.13,7.55801673]
[1755973337311,26.0,204.15,204.14,0.7]
[1755973337519,0.14216157,204.17,204.14,0.7]
[1755973337520,80.5,204.19,204.14,8.25801673]
[1755973337708,80.5,204.19,204.15,0.7]
[1755973337908,8.248017,204.23,204.16,7.55801673]
[1755973338103,42.65672628,204.22,204.13,7.55801673]
[1755973338327,0.14216157,204.18,204.13,7.55801673]
[1755973338534,0.28432314,204.18,204.14,0.7]
[1755973338824,0.28432314,204.18,204.13,7.55801673]
[1755973339028,0.28432314,204.18,204.15,0.7]
[1755973339209,26.0,204.16,204.15,0.7]
[1755973342009,26.06,204.16,204.15,0.7]
[1755973344039,31.64834955,204.16,204.11,7.58801673]
[1755973344232,31.64834955,204.16,204.12,0.7]
[1755973345329,0.69,204.15,204.12,0.7]
[1755973345523,0.69,204.15,204.11,0.03]
[1755973345524,0.69,204.14,204.11,0.03]
[1755973345723,0.97432314,204.15,204.11,0.03]
[1755973346037,0.97432314,204.15,204.12,0.7]
[1755973346038,0.28432314,204.15,204.12,0.7]
[1755973346811,5.1827144,204.15,204.12,0.7]
[1755973347239,5.8727144,204.15,204.12,0.7]
[1755973348724,5.8727144,204.15,204.11,0.71]
[1755973349340,5.1827144,204.15,204.12,0.68]
[1755973349522,5.24248674,204.16,204.12,0.68]
[1755973349842,5.93248674,204.16,204.12,0.68]
[1755973351738,0.69,204.15,204.11,7.58801673]
[1755973352131,0.69,204.15,204.11,8.26801673]
[1755973352524,0.69,204.15,204.11,0.71]
[1755973352725,5.58853942,204.15,204.11,0.71]
[1755973353117,5.58853942,204.15,204.12,0.68]
[1755973353319,4.89853942,204.15,204.13,0.68]
[1755973354027,4.89853942,204.15,204.11,8.26801673]
[1755973354348,5.58853942,204.15,204.12,0.68]
[1755973357531,4.89853942,204.15,204.12,0.68]
[1755973358441,26.06,204.16,204.14,7.55801673]
[1755973358743,26.06,204.16,204.15,0.68]
[1755973359121,26.06,204.16,204.14,7.55801673]
[1755973359329,26.06,204.16,204.14,8.23801673]
[1755973359526,26.06,204.16,204.15,0.68]
[1755973361551,26.06,204.16,204.13,7.55801673]
[1755973361734,26.06,204.16,204.13,8.23801673]
[1755973362051,26.06,204.16,204.14,0.68]
[1755973363821,26.06,204.16,204.15,0.68]
[1755973368053,26.06,204.16,204.13,8.23801673]
[1755973368245,26.06,204.16,204.13,7.55801673]
[1755973368419,26.06,204.16,204.14,0.68]
[1755973371051,26.06,204.16,204.15,0.68]
[1755973371448,26.06,204.16,204.13,0.68]
[1755973371657,26.06,204.16,204.13,8.23801673]
[1755973371973,26.06,204.16,204.14,0.68]
[1755973373356,0.69,204.15,204.12,0.03]
[1755973373651,0.75,204.16,204.13,7.55801673]
[1755973373842,0.06,204.16,204.13,7.55801673]
[1755973374038,0.06,204.16,204.13,8.23801673]
[1755973374657,0.75,204.16,204.13,8.23801673]
[1755973374954,0.06,204.16,204.13,8.23801673]
[1755973375339,0.06,204.16,204.14,0.68]
[1755973376351,0.06,204.16,204.14,0.71]
[1755973377850,0.06,204.16,204.14,0.03]
[1755973379250,0.06,204.16,204.14,0.7]
[1755973379466,0.06,204.16,204.14,0.03]
[1755973380048,0.06,204.16,204.14,0.7]
[1755973380858,0.06,204.16,204.14,0.03]
[1755973382433,0.06,204.16,204.14,0.7]
[1755973383361,0.06,204.16,204.14,0.03]
[1755973383660,0.77,204.16,204.14,0.03]
[1755973384858,0.06,204.16,204.14,0.03]
[1755973386662,0.77,204.16,204.14,0.03]
[1755973389273,0.06,204.16,204.14,0.03]
[1755973389461,0.06,204.16,204.14,0.7]
[1755973393160,0.06,204.16,204.14,0.03]
[1755973396700,26.06,204.16,204.15,5.51707204]
[1755973397004,0.06,204.16,204.15,5.51707204]
[1755973398445,0.06,204.16,204.15,19.11266605]
[1755973398747,0.06,204.16,204.15,24.01102509]
[1755973399054,0.06,204.16,204.15,19.11266605]
[1755973399452,0.06,204.16,204.15,21.07407605]
[1755973400056,0.06,204.16,204.15,25.97243509]
[1755973400252,0.06,204.16,204.15,45.36072325]
[1755973400470,0.06,204.16,204.15,45.85055915]
[1755973402472,0.06,204.19,204.16,13.59559401]
[1755973402675,0.06,204.19,204.18,4.84707204]
[1755973403183,0.06,204.19,204.18,5.51707204]
[1755973403886,0.06,204.19,204.18,0.67]
[1755973404093,0.06,204.19,204.18,5.51707204]
[1755973405099,0.06,204.19,204.18,24.50006931]
[1755973405391,0.06,204.21,204.2,18.44266605]
[1755973405600,0.06,204.21,204.2,56.12266605]
[1755973405962,0.06,204.21,204.2,56.79266605]
[1755973406273,0.06,204.21,204.2,61.46896766]
[1755973406625,0.06,204.26,204.21,13.59559401]
[1755973406780,0.06,204.26,204.25,21.15842366]
[1755973407285,0.06,204.26,204.25,21.82842366]
[1755973407592,0.06,204.26,204.25,59.50842366]
[1755973408789,0.06,204.26,204.25,64.40438449]
[1755973410570,0.06,204.26,204.25,66.36454349]
[1755973412993,0.06,204.26,204.25,60.79858266]
[1755973413685,0.06,204.26,204.25,61.48858266]
[1755973414379,0.06,204.26,204.25,66.38454349]
[1755973415874,0.06,204.26,204.25,65.69454349]
[1755973416089,0.06,204.26,204.25,60.79858266]
[1755973416287,0.74,204.26,204.25,23.11858266]
[1755973416489,0.74,204.26,204.25,58.81842366]
[1755973418290,0.06,204.26,204.25,58.81842366]
[1755973419393,0.74,204.26,204.25,58.81842366]
[1755973419594,0.06,204.26,204.25,58.81842366]
[1755973430410,0.06,204.26,204.25,56.09658213]
[1755973433725,0.06,204.26,204.25,51.25559401]
[1755973435624,0.06,204.26,204.25,56.78658213]
[1755973437516,0.06,204.26,204.25,56.09658213]
[1755973438510,0.06,204.26,204.25,56.76658213]
[1755973439112,0.06,204.26,204.25,61.66254296]
[1755973439624,0.06,204.26,204.25,63.62289496]
[1755973440512,0.78,204.26,204.25,58.05693413]
[1755973440911,0.06,204.26,204.25,58.05693413]
[1755973441113,0.06,204.26,204.25,56.09658213]
[1755973443834,0.06,204.26,204.25,51.25559401]
[1755973444930,0.06,204.26,204.25,56.09658213]
[1755973447035,0.06,204.26,204.25,56.76658213]
[1755973447709,0.06,204.26,204.25,58.72703013]
[1755973450106,0.06,204.26,204.25,63.62299096]
[1755973452049,0.06,204.26,204.25,61.66254296]
[1755973456033,0.06,204.26,204.25,63.62260696]
[1755973459438,0.06,204.26,204.25,58.78161884]
[1755973459643,0.06,204.26,204.25,63.62260696]
[1755973459943,0.06,204.26,204.25,25.29260696]
[1755973460144,0.78,204.26,204.25,56.07658213]
[1755973460317,0.06,204.29,204.25,56.07658213]
[1755973460318,4.84098812,204.32,204.26,13.59559401]
[1755973460641,4.84098812,204.32,204.28,13.59559401]
[1755973460822,4.84098812,204.32,204.29,37.64]
[1755973461159,4.84098812,204.31,204.29,37.64]
[1755973462460,0.57,204.3,204.29,37.64]
[1755973464919,0.57,204.31,204.29,37.64]
[1755973471050,5.41098812,204.3,204.24,18.43658213]
[1755973471229,5.41098812,204.3,204.26,13.59559401]
[1755973471432,0.57,204.29,204.27,37.64]
[1755973473249,0.57,204.28,204.27,37.64]
[1755973473554,5.41098812,204.28,204.22,0.67]
[1755973473730,4.84098812,204.26,204.21,13.62559401]
[1755973473930,0.57,204.25,204.22,37.64]
[1755973474232,4.84098812,204.26,204.22,37.64]
[1755973474446,4.84098812,204.26,204.22,38.31]
[1755973475923,0.57,204.27,204.22,37.64]
[1755973476129,4.84098812,204.27,204.23,0.67]
[1755973476353,4.84098812,204.27,204.24,37.64]
[1755973476554,4.84098812,204.27,204.24,38.31]
[1755973478137,4.84098812,204.27,204.24,37.64]
[1755973478335,5.41098812,204.27,204.24,37.64]
[1755973478662,4.84098812,204.26,204.24,37.64]
[1755973480330,4.84098812,204.26,204.24,38.31]
[1755973480536,4.84098812,204.26,204.24,37.64]
[1755973481166,4.84098812,204.26,204.24,38.31]
[1755973481459,4.84098812,204.26,204.24,37.64]
[1755973481664,4.84098812,204.27,204.24,38.31]
[1755973482363,4.84098812,204.26,204.24,37.64]
[1755973484740,4.84098812,204.26,204.24,38.31]
[1755973488153,4.84098812,204.26,204.25,0.67]
[1755973488562,4.84098812,204.26,204.24,37.64]
[1755973488746,4.84098812,204.26,204.24,38.31]
[1755973491270,4.84098812,204.26,204.24,37.64]
[1755973491639,4.84098812,204.26,204.24,38.31]
[1755973491839,4.84098812,204.26,204.24,37.64]
[1755973492263,4.84098812,204.26,204.24,38.31]
[1755973492462,4.84098812,204.26,204.24,38.34]
[1755973494857,4.84098812,204.26,204.24,37.67]
[1755973495054,4.84098812,204.26,204.25,0.67]
[1755973497852,4.84098812,204.26,204.24,38.34]
[1755973498864,4.84098812,204.25,204.24,37.67]
[1755973499248,4.84098812,204.25,204.24,0.03]
[1755973500348,4.84098812,204.25,204.24,0.7]
[1755973504772,4.84098812,204.25,204.24,0.03]
[1755973505070,26.0,204.28,204.24,0.7]
[1755973505374,4.84098812,204.27,204.24,0.7]
[1755973507572,26.0,204.28,204.24,0.7]
[1755973507573,4.84098812,204.26,204.24,0.7]
[1755973508476,4.84098812,204.25,204.24,14.29559401]
[1755973510452,4.84098812,204.25,204.24,0.03]
[1755973512791,4.84098812,204.25,204.24,0.7]
[1755973514189,4.8956977,204.27,204.24,0.7]
[1755973514493,4.84098812,204.25,204.24,0.7]
[1755973524796,26.57,204.28,204.24,0.7]
[1755973524994,14.707685,204.29,204.25,51.21559401]
[1755973525289,19.54867312,204.29,204.26,0.67]
[1755973525484,4.84098812,204.28,204.27,13.59559401]
[1755973525684,4.84098812,204.28,204.27,0.67]
[1755973528396,4.84098812,204.29,204.27,0.67]
[1755973528692,4.84098812,204.29,204.28,0.72]
[1755973529995,4.84098812,204.29,204.26,13.59559401]
[1755973530293,4.84098812,204.27,204.25,37.62]
[1755973530489,4.84098812,204.26,204.25,51.21559401]
[1755973530688,4.84098812,204.26,204.25,37.62]
[1755973533598,5.46537638,204.28,204.25,37.62]
[1755973533901,4.84098812,204.26,204.25,37.62]
[1755973535078,4.84098812,204.26,204.25,38.34]
[1755973540102,4.89505371,204.29,204.25,38.34]
[1755973540293,4.84098812,204.27,204.26,0.72]
[1755973544308,4.84098812,204.27,204.25,38.37]
[1755973544498,4.84098812,204.26,204.25,38.37]
[1755973545909,4.84098812,204.26,204.25,37.65]
[1755973546687,4.84098812,204.26,204.25,38.37]
[1755973547122,4.84098812,204.26,204.25,37.65]
[1755973551319,5.46529773,204.28,204.25,37.65]
[1755973551491,0.85432314,204.28,204.25,37.65]
[1755973551693,4.84098812,204.26,204.25,37.65]
[1755973552188,4.84098812,204.26,204.25,38.37]
[1755973558411,4.84098812,204.26,204.25,37.65]
[1755973558611,4.84098812,204.26,204.25,38.31]
[1755973564820,4.84098812,204.26,204.25,37.65]
[1755973565022,4.84098812,204.26,204.25,38.31]
[1755973569533,5.17960151,204.28,204.25,38.31]
[1755973569732,4.84098812,204.26,204.25,38.31]
[1755973573636,0.06,204.31,204.26,13.59559401]
[1755973573828,4.90098812,204.31,204.26,14.25559401]
[1755973574015,4.90098812,204.31,204.28,13.59559401]
[1755973574222,4.90098812,204.31,204.29,38.24]
[1755973574436,4.90098812,204.31,204.29,37.58]
[1755973574736,4.90098812,204.31,204.3,0.66]
[1755973574936,0.06,204.31,204.3,14.25559401]
[1755973575316,0.06,204.31,204.3,28.95607201]
[1755973577132,0.06,204.31,204.3,14.25559401]
[1755973577530,4.90098812,204.31,204.3,14.25559401]
[1755973577728,4.90098812,204.31,204.29,37.58]
[1755973578035,0.06,204.31,204.3,14.25559401]
[1755973578211,4.90098812,204.31,204.3,0.66]
[1755973578413,5.47098812,204.31,204.29,37.58]
[1755973578622,4.84098812,204.3,204.29,37.58]
[1755973579818,4.84098812,204.3,204.29,38.24]
[1755973581346,5.080988,204.31,204.29,38.24]
[1755973581550,4.84098812,204.3,204.29,37.58]
[1755973582648,4.84098812,204.3,204.27,38.24]
[1755973582834,4.84098812,204.3,204.28,0.66]
[1755973583145,4.84098812,204.29,204.28,0.66]
[1755973584849,9.73604179,204.29,204.25,0.69]
[1755973585018,4.84098812,204.26,204.25,38.27]
[1755973587825,4.84098812,204.26,204.25,37.61]
[1755973588352,4.84098812,204.26,204.25,38.29]
[1755973589821,4.84098812,204.26,204.25,51.88559401]
[1755973591854,4.84098812,204.26,204.25,14.30559401]
[1755973594269,9.78953445,204.3,204.25,14.30559401]
[1755973594557,4.84098812,204.26,204.25,13.62559401]
[1755973594744,4.84098812,204.26,204.25,51.20559401]
[1755973594946,4.84098812,204.26,204.25,51.88559401]
[1755973596434,4.84098812,204.26,204.25,14.30559401]
[1755973596634,4.84098812,204.26,204.25,51.88559401]
[1755973600265,4.894767,204.3,204.26,13.59559401]
[1755973600441,4.90098812,204.31,204.28,13.59559401]
[1755973600760,4.84098812,204.3,204.29,51.85559401]
[1755973601362,4.90098812,204.31,204.3,13.59559401]
[1755973601660,0.06,204.31,204.3,14.27559401]
[1755973603135,0.06,204.31,204.3,19.11658301]
[1755973604355,0.06,204.31,204.3,24.01134561]
[1755973604749,0.06,204.31,204.3,31.57192441]
[1755973609248,0.06,204.31,204.3,31.85624755]
[1755973611963,0.06,204.31,204.3,24.29566875]
[1755973612147,0.06,204.31,204.3,31.85624755]
[1755973617352,0.06,204.34,204.33,39.59559401]
[1755973617551,0.06,204.34,204.33,85.00049595]
[1755973617872,0.06,204.34,204.33,85.66049595]
[1755973618074,0.06,204.34,204.33,98.68511889]
[1755973622588,0.06,204.36,204.34,13.87991715]
[1755973622888,0.06,204.36,204.35,84.69617281]
[1755973623067,0.06,204.36,204.35,85.35617281]
[1755973623267,7.5605788,204.47,204.39,13.59559401]
[1755973623462,7.5605788,204.47,204.41,21.15617281]
[1755973623663,7.5605788,204.47,204.43,13.59559401]
[1755973623868,7.5605788,204.47,204.44,37.54]
[1755973624183,7.7205788,204.47,204.44,37.54]
[1755973624488,0.16,204.46,204.45,14.689681]
[1755973624712,26.0,204.49,204.46,13.59559401]
[1755973624856,0.16,204.48,204.47,37.54]
[1755973625182,0.1,204.52,204.48,13.59559401]
[1755973625388,0.1,204.52,204.49,37.54]
[1755973625389,4.98950046,204.52,204.49,37.54]
[1755973625750,0.16,204.51,204.49,37.54]
[1755973625955,0.1,204.52,204.5,13.59559401]
[1755973626177,0.16,204.51,204.46,13.59559401]
[1755973626367,0.16,204.51,204.47,37.64]
[1755973626573,7.5605788,204.48,204.47,51.23559401]
[1755973626783,7.7205788,204.48,204.47,13.59559401]
[1755973626958,7.7205788,204.48,204.47,37.64]
[1755973627274,7.7205788,204.48,204.44,7.560578]
[1755973627480,12.6103569,204.51,204.39,7.5605788]
[1755973627481,0.16,204.47,204.45,51.23559401]
[1755973628382,0.16,204.47,204.44,51.25559401]
[1755973628600,7.5605788,204.45,204.44,51.25559401]
[1755973628820,7.7205788,204.45,204.44,51.25559401]
[1755973629713,7.5605788,204.45,204.44,51.25559401]
[1755973630097,7.7205788,204.45,204.44,51.25559401]
[1755973630601,0.16,204.45,204.44,51.25559401]
[1755973630807,7.7205788,204.45,204.44,51.25559401]
[1755973630980,7.5605788,204.48,204.44,51.91559401]
[1755973631389,7.5605788,204.48,204.44,66.60527401]
[1755973631609,7.7205788,204.48,204.44,51.91559401]
[1755973631919,7.7205788,204.48,204.44,65.94527501]
[1755973632476,7.5605788,204.47,204.44,51.25559401]
[1755973633176,7.7205788,204.48,204.44,51.25559401]
[1755973633687,7.5605788,204.46,204.44,51.25559401]
[1755973633889,7.7205788,204.45,204.44,37.66]
[1755973634185,7.7205788,204.45,204.44,37.82]
[1755973635108,7.7205788,204.45,204.42,13.59559401]
[1755973635410,7.7205788,204.45,204.39,8.2205788]
[1755973635411,7.5605788,204.44,204.43,51.41559401]
[1755973637117,7.7205788,204.44,204.43,51.41559401]
[1755973637289,7.7205788,204.44,204.43,37.82]
[1755973637490,12.45198948,204.44,204.42,37.82]
[1755973637723,7.5605788,204.43,204.42,13.59559401]
[1755973637902,4.89141068,204.44,204.42,13.59559401]
[1755973638099,30.89098085,204.46,204.42,14.25559401]
[1755973638294,7.5605788,204.44,204.42,14.25559401]
[1755973638825,7.5605788,204.44,204.42,13.59559401]
[1755973640512,7.5605788,204.43,204.42,13.59559401]
[1755973642415,7.5605788,204.43,204.41,37.82]
[1755973642606,7.5605788,204.42,204.41,51.41559401]
[1755973642916,8.1905788,204.42,204.36,13.59559401]
[1755973643106,7.5605788,204.37,204.36,37.86]
[1755973645006,8.1905788,204.37,204.33,13.62559401]
[1755973645323,7.5605788,204.34,204.33,13.62559401]
[1755973645897,7.5605788,204.34,204.33,0.03]
[1755973649829,13.08438324,204.34,204.33,0.03]
[1755973650126,48.4961728,204.34,204.33,0.03]
[1755973650332,34.1905788,204.34,204.33,0.03]
[1755973650697,39.08438324,204.34,204.33,0.03]
[1755973652117,39.36870638,204.34,204.33,0.03]
[1755973653113,41.32915438,204.34,204.33,0.03]
[1755973658927,27.960448,204.34,204.33,0.03]
[1755973659121,7.5605788,204.34,204.33,0.71]
[1755973659320,114.0605788,204.37,204.33,0.71]
[1755973659507,33.5605788,204.37,204.33,0.71]
[1755973659920,26.0,204.37,204.33,0.71]
[1755973661216,26.0,204.35,204.34,0.68]
[1755973661730,33.5605788,204.35,204.33,0.03]
[1755973661933,26.0,204.36,204.33,0.71]
[1755973662255,33.5605788,204.35,204.33,0.03]
[1755973662450,33.5605788,204.35,204.33,0.71]
[1755973663431,38.45422405,204.35,204.33,0.03]
[1755973663605,7.5605788,204.34,204.33,0.03]
[1755973665531,38.45415559,204.35,204.33,0.03]
[1755973666835,7.5605788,204.34,204.33,0.03]
[1755973668934,13.36870638,204.34,204.33,0.03]
[1755973669244,15.32934738,204.34,204.33,0.03]
[1755973669446,53.14934738,204.34,204.33,0.03]
[1755973676741,26.28432314,204.32,204.31,0.03]
[1755973676945,71.62490194,204.32,204.31,0.03]
[1755973677261,72.25490194,204.32,204.31,0.03]
[1755973677443,74.21582994,204.32,204.31,0.03]
[1755973678931,79.11011341,204.32,204.31,0.03]
[1755973679362,40.70011341,204.32,204.31,0.73]
[1755973679654,78.48011341,204.32,204.31,0.73]
[1755973680154,40.70011341,204.32,204.31,0.03]
[1755973680324,78.48011341,204.32,204.31,0.03]
[1755973681548,73.60582994,204.32,204.31,0.73]
[1755973681829,33.5605788,204.32,204.31,0.73]
[1755973684424,38.73918541,204.32,204.31,0.03]
[1755973684939,77.14918541,204.32,204.31,0.03]
[1755973685339,79.10982541,204.32,204.31,0.03]
[1755973687145,40.69982541,204.32,204.31,0.03]
[1755973687358,78.47982541,204.32,204.31,0.03]
[1755973688758,79.10982541,204.32,204.31,0.03]
[1755973689961,78.47982541,204.32,204.31,0.03]
[1755973690963,40.69982541,204.32,204.31,0.03]
[1755973691264,78.47982541,204.32,204.31,0.03]
[1755973693644,40.69982541,204.32,204.31,0.03]
[1755973693846,78.45982541,204.32,204.31,0.03]
[1755973694367,40.69982541,204.32,204.31,0.03]
[1755973694667,78.45982541,204.32,204.31,0.03]
[1755973695037,40.69982541,204.32,204.31,0.03]
[1755973695236,78.45982541,204.32,204.31,0.03]
[1755973698169,79.08982541,204.32,204.31,0.03]
[1755973698466,80.78432314,204.31,204.3,0.03]
[1755973698759,88.97490194,204.31,204.3,0.03]
[1755973699351,95.83054596,204.31,204.3,0.03]
[1755973700670,1.961121,204.31,204.3,0.73]
[1755973700866,4.95426525,204.33,204.3,0.73]
[1755973701179,7.5605788,204.31,204.3,0.73]
[1755973702048,0.06,204.33,204.3,0.73]
[1755973702366,7.6205788,204.33,204.3,0.73]
[1755973704676,7.5605788,204.32,204.3,0.73]
[1755973705584,7.5605788,204.31,204.3,0.03]
[1755973706280,7.5605788,204.31,204.3,0.73]
[1755973706664,12.45510182,204.31,204.3,0.73]
[1755973707572,4.89452302,204.31,204.3,0.73]
[1755973708074,12.45510182,204.31,204.3,0.73]
[1755973709360,50.25510182,204.31,204.3,0.73]
[1755973709560,12.45510182,204.31,204.3,0.73]
[1755973709875,50.25510182,204.31,204.3,0.73]
[1755973712488,50.53942496,204.31,204.3,0.03]
[1755973712974,52.50016096,204.31,204.3,0.03]
[1755973714567,50.53942496,204.31,204.3,0.03]
[1755973715374,50.53942496,204.31,204.3,0.69]
[1755973715574,50.53942496,204.31,204.3,0.03]
[1755973715877,50.53942496,204.31,204.3,0.69]
[1755973718377,5.17884616,204.31,204.3,0.69]
[1755973718570,50.49942496,204.31,204.3,0.69]
[1755973719082,50.49942496,204.31,204.3,0.03]
[1755973725789,50.55942496,204.31,204.3,0.03]
[1755973725974,52.52016196,204.31,204.3,0.03]
[1755973726287,50.55942496,204.31,204.3,0.03]
[1755973731012,51.18942496,204.31,204.3,0.03]
[1755973731192,53.15054596,204.31,204.3,0.03]
[1755973733821,15.39054596,204.31,204.3,0.03]
[1755973734118,53.11054596,204.31,204.3,0.03]
[1755973734514,41.39054596,204.31,204.3,0.03]
[1755973734705,53.11054596,204.31,204.3,0.03]
[1755973735813,45.54996716,204.31,204.3,0.03]
[1755973736016,47.58602294,204.31,204.3,0.69]
[1755973736208,52.48054596,204.31,204.3,0.69]
[1755973736600,52.48054596,204.31,204.3,0.03]
[1755973737821,44.91996716,204.31,204.3,0.03]
[1755973738125,52.48054596,204.31,204.3,0.03]
[1755973739622,53.11054596,204.31,204.3,0.03]
[1755973739801,52.48054596,204.31,204.3,0.03]
[1755973743234,14.76054596,204.31,204.3,0.03]
[1755973743410,52.48054596,204.31,204.3,0.03]
[1755973745535,2.021121,204.31,204.3,0.03]
[1755973745720,52.19622282,204.31,204.3,0.75]
[1755973746034,52.48054596,204.31,204.3,0.75]
[1755973749136,14.76054596,204.31,204.3,0.75]
[1755973749338,52.46054596,204.31,204.3,0.75]
[1755973749638,44.89996716,204.31,204.3,0.75]
[1755973749844,52.46054596,204.31,204.3,0.75]
[1755973750230,78.46054596,204.31,204.3,0.75]
[1755973750829,28.021121,204.31,204.3,0.75]
[1755973751131,71.3205788,204.31,204.3,0.75]
[1755973752376,68.6015968,204.31,204.3,0.75]
[1755973753046,68.5815968,204.31,204.3,0.75]
[1755973756755,30.9015968,204.31,204.3,0.75]
[1755973757054,68.5815968,204.31,204.3,0.75]
[1755973757552,73.47611982,204.31,204.3,0.75]
[1755973757854,73.76044296,204.31,204.3,0.03]
[1755973758359,75.72117996,204.31,204.3,0.03]
[1755973759830,75.72117996,204.31,204.3,0.75]
[1755973763353,6.8623338,204.31,204.3,0.75]
[1755973763572,26.06,204.31,204.3,0.75]
[1755973764853,26.06,204.31,204.3,5.5915968]
[1755973764854,0.06,204.31,204.3,5.5915968]
[1755973770748,0.06,204.31,204.3,19.18719081]
[1755973770970,0.06,204.31,204.3,24.08195341]
[1755973772971,0.06,204.31,204.3,19.18719081]
[1755973775474,0.06,204.31,204.3,0.03]
[1755973775675,0.06,204.31,204.3,0.69]
[1755973782577,0.06,204.31,204.3,21.84743352]
[1755973783584,0.06,204.31,204.3,14.28559401]
[1755973783972,0.06,204.31,204.3,13.62559401]
[1755973784491,0.06,204.31,204.3,14.28559401]
[1755973784994,0.06,204.31,204.3,13.62559401]
[1755973785593,0.06,204.31,204.3,14.28559401]
[1755973786890,0.06,204.31,204.3,0.03]
[1755973787090,0.16,204.31,204.3,0.03]
[1755973787262,7.72183951,204.31,204.3,0.03]
[1755973787583,15.28367951,204.31,204.3,0.03]
[1755973789897,20.46252567,204.31,204.3,0.03]
[1755973792586,20.36252567,204.31,204.3,0.03]
[1755973795884,12.80068616,204.31,204.3,0.03]
[1755973796201,20.36252567,204.31,204.3,0.03]
[1755973797391,20.99252567,204.31,204.3,0.03]
[1755973800512,58.00252567,204.31,204.3,0.03]
[1755973802323,55.28214645,204.31,204.3,0.03]
[1755973805474,17.64214645,204.31,204.3,0.03]
[1755973805676,55.28214645,204.31,204.3,0.03]
[1755973808501,17.64214645,204.31,204.3,0.03]
[1755973808686,55.28214645,204.31,204.3,0.03]
[1755973810086,81.91214645,204.31,204.3,0.03]